fUST/lending_fUST_20240319
["ID","MTS","AMOUNT","RATE_DAILY","PERIOD"]
[319492970,1710801032773,-313.72821769,0.00020998,2]
[319492973,1710801032782,-155.27492534,0.00020998,2]
[319492975,1710801032792,-213.10742102,0.00020998,2]
[319492977,1710801032801,-264.46097427,0.00020998,2]
[319492979,1710801032811,-884.03929032,0.00020998,2]
[319492981,1710801032821,-593.73479584,0.00020998,2]
[319492983,1710801032830,-500.0,0.00020998,2]
[319492984,1710801032839,-280.71626239,0.00020998,2]
[319492987,1710801032849,-500.0,0.00020998,2]
[319492989,1710801032858,-500.0,0.00020998,2]
[319492990,1710801032867,-155.03255684,0.00020998,2]
[319492992,1710801032877,-500.0,0.00020998,2]
[319492994,1710801032886,-501.47009959,0.00020998,2]
[319492997,1710801032897,-500.0,0.00020998,2]
[319492999,1710801032911,-589.029424,0.00020998,2]
[319493001,1710801032921,-500.0,0.00020998,2]
[319493003,1710801032930,-500.0,0.00020998,2]
[319493005,1710801032939,-500.0,0.00020998,2]
[319493007,1710801032950,-500.0,0.00020998,2]
[319493009,1710801032959,-500.0,0.00020998,2]
[319493011,1710801032968,-500.0,0.00020998,2]
[319493013,1710801032977,-500.0,0.00020998,2]
[319493015,1710801032987,-443.22625326,0.00020998,2]
[319493017,1710801032997,-500.0,0.00020998,2]
[319493019,1710801033008,-382.08205992,0.00020998,2]
[319493021,1710801033018,-500.0,0.00020998,2]
[319493022,1710801033028,-500.0,0.00020998,2]
[319493024,1710801033036,-500.0,0.00020998,2]
[319493026,1710801033045,-501.31419047,0.00020998,2]
[319493027,1710801033055,-500.0,0.00020998,2]
[319493029,1710801033065,-500.0,0.00020998,2]
[319493030,1710801033075,-500.0,0.00020998,2]
[319493031,1710801033084,-500.0,0.00020998,2]
[319493032,1710801033093,-595.30383915,0.00020998,2]
[319493033,1710801033103,-500.0,0.00020998,2]
[319493034,1710801033112,-500.0,0.00020998,2]
[319493035,1710801033122,-500.0,0.00020998,2]
[319493036,1710801033131,-500.0,0.00020998,2]
[319493037,1710801033140,-509.22,0.00020998,2]
[319493038,1710801033150,-500.0,0.00020998,2]
[319493039,1710801033160,-500.0,0.00020998,2]
[319493040,1710801033169,-500.0,0.00020998,2]
[319493041,1710801033180,-500.0,0.00020998,2]
[319493042,1710801033191,-369.88452972,0.00020998,2]
[319493043,1710801033200,-500.0,0.00020998,2]
[319493044,1710801033210,-500.0,0.00020998,2]
[319493045,1710801033219,-500.0,0.00020998,2]
[319493046,1710801033229,-500.0,0.00020998,2]
[319493047,1710801033238,-500.0,0.00020998,2]
[319493048,1710801033247,-500.0,0.00020998,2]
[319493049,1710801033257,-159.91758974,0.00020998,2]
[319493050,1710801033267,-500.0,0.00020998,2]
[319493051,1710801033277,-425.28297113,0.00020998,2]
[319493052,1710801033286,-500.0,0.00020998,2]
[319493053,1710801033296,-500.0,0.00020998,2]
[319493054,1710801033306,-737.2,0.00020998,2]
[319493055,1710801033316,-737.2,0.00020998,2]
[319493056,1710801033326,-527.46,0.00020998,2]
[319493057,1710801033337,-527.46,0.00020998,2]
[319493058,1710801033346,-500.0,0.00020998,2]
[319493059,1710801033357,-500.0,0.00020998,2]
[319493060,1710801033367,-500.0,0.00020998,2]
[319493061,1710801033376,-500.0,0.00020998,2]
[319493062,1710801033386,-500.0,0.00020998,2]
[319493063,1710801033396,-500.0,0.00020998,2]
[319493064,1710801033406,-500.0,0.00020999,2]
[319493065,1710801033416,-370.80290693,0.00020999,2]
[319493066,1710801033425,-500.0,0.00020999,2]
[319493067,1710801033435,-500.0,0.00020999,2]
[319493068,1710801033445,-500.0,0.00020999,2]
[319493069,1710801033454,-500.0,0.00020999,2]
[319493070,1710801033464,-500.0,0.00020999,2]
[319493071,1710801033474,-500.0,0.00020999,2]
[319493072,1710801033484,-442.66123111,0.00020999,2]
[319493073,1710801033494,-420.99032258,0.00020999,2]
[319493074,1710801033504,-513.6112793,0.00020999,2]
[319493075,1710801033514,-500.0,0.00020999,2]
[319493076,1710801033525,-500.0,0.00020999,2]
[319493077,1710801033534,-500.0,0.00020999,2]
[319493078,1710801033543,-500.57673545,0.00020999,2]
[319493079,1710801033553,-641.25536769,0.00020999,2]
[319493080,1710801033563,-221.06451829,0.00020999,2]
[319493081,1710801033573,-500.70699595,0.00020999,2]
[319493082,1710801033583,-500.0,0.00020999,2]
[319493083,1710801033592,-500.0,0.00020999,2]
[319493084,1710801033602,-500.0,0.00020999,2]
[319493085,1710801033611,-501.198018,0.00020999,2]
[319493086,1710801033621,-500.0,0.00020999,2]
[319493087,1710801033630,-512.15362293,0.00020999,2]
[319493088,1710801033640,-500.0,0.00020999,2]
[319493089,1710801033650,-500.0,0.00020999,2]
[319493090,1710801033659,-500.0,0.00020999,2]
[319493091,1710801033669,-500.0,0.00020999,2]
[319493092,1710801033679,-500.0,0.00020999,2]
[319493093,1710801033688,-500.0,0.00020999,2]
[319493094,1710801033700,-500.0,0.00020999,2]
[319493095,1710801033710,-500.0,0.00020999,2]
[319493096,1710801033721,-500.0,0.00020999,2]
[319493097,1710801033730,-500.0,0.00020999,2]
[319493098,1710801033740,-500.0,0.00020999,2]
[319493099,1710801033749,-500.0,0.00020999,2]
[319493100,1710801033759,-500.0,0.00020999,2]
[319493101,1710801033769,-500.0,0.00020999,2]
[319493102,1710801033780,-500.0,0.00020999,2]
[319493103,1710801033790,-233.461845,0.00020999,2]
[319493104,1710801033799,-500.0,0.00020999,2]
[319493105,1710801033808,-500.0,0.00020999,2]
[319493106,1710801033818,-500.0,0.00020999,2]
[319493107,1710801033827,-500.0,0.00020999,2]
[319493108,1710801033837,-500.0,0.00020999,2]
[319493109,1710801033847,-385.91,0.00020999,2]
[319493110,1710801033857,-500.0,0.00020999,2]
[319493111,1710801033867,-500.0,0.00020999,2]
[319493112,1710801033876,-493.87,0.00020999,2]
[319493113,1710801033886,-501.84157759,0.00020999,2]
[319493114,1710801033897,-500.0,0.00020999,2]
[319493115,1710801033907,-367.94,0.00020999,2]
[319493116,1710801033920,-500.0,0.00020999,2]
[319493117,1710801033929,-500.0,0.00020999,2]
[319493118,1710801033939,-500.0,0.00020999,2]
[319493119,1710801033949,-500.0,0.00020999,2]
[319493120,1710801033959,-500.0,0.00020999,2]
[319493121,1710801033968,-500.0,0.00020999,2]
[319493122,1710801033978,-500.0,0.00020999,2]
[319493123,1710801033987,-500.0,0.00020999,2]
[319493124,1710801033998,-500.0,0.00020999,2]
[319493125,1710801034008,-500.0,0.00020999,2]
[319493126,1710801034017,-399.24,0.00020999,2]
[319493127,1710801034028,-737.2,0.00020999,2]
[319493128,1710801034036,-737.2,0.00020999,2]
[319493129,1710801034052,-737.2,0.00020999,2]
[319493130,1710801034062,-737.2,0.00020999,2]
[319493131,1710801034071,-737.2,0.00020999,2]
[319493132,1710801034081,-737.2,0.00020999,2]
[319493133,1710801034091,-737.2,0.00020999,2]
[319493134,1710801034100,-737.2,0.00020999,2]
[319493135,1710801034110,-737.2,0.00020999,2]
[319493136,1710801034120,-737.2,0.00020999,2]
[319493137,1710801034129,-737.2,0.00020999,2]
[319493138,1710801034139,-737.2,0.00020999,2]
[319493139,1710801034148,-737.2,0.00020999,2]
[319493140,1710801034158,-737.2,0.00020999,2]
[319493141,1710801034168,-527.46,0.00020999,2]
[319493142,1710801034178,-737.2,0.00020999,2]
[319493143,1710801034187,-527.46,0.00020999,2]
[319493144,1710801034197,-737.2,0.00020999,2]
[319493145,1710801034206,-527.46,0.00020999,2]
[319493146,1710801034216,-527.46,0.00020999,2]
[319493147,1710801034225,-737.2,0.00020999,2]
[319493148,1710801034235,-527.46,0.00020999,2]
[319493149,1710801034244,-737.2,0.00020999,2]
[319493150,1710801034254,-250.48703251,0.00020999,2]
[319493201,1710801038217,-276.97296749,0.00020999,2]
[319493204,1710801038227,-737.2,0.00020999,2]
[319493207,1710801038236,-737.25006942,0.00020999,2]
[319493210,1710801038245,-527.46,0.00020999,2]
[319493213,1710801038254,-527.46,0.00020999,2]
[319493216,1710801038263,-527.46,0.00020999,2]
[319493220,1710801038273,-527.46,0.00020999,2]
[319493223,1710801038284,-527.46,0.00020999,2]
[319493225,1710801038293,-527.46,0.00020999,2]
[319493228,1710801038302,-527.46,0.00020999,2]
[319493231,1710801038311,-527.46,0.00020999,2]
[319493234,1710801038320,-527.46,0.00020999,2]
[319493236,1710801038329,-527.46,0.00020999,2]
[319493238,1710801038338,-527.46,0.00020999,2]
[319493241,1710801038348,-527.46,0.00020999,2]
[319493244,1710801038357,-527.46,0.00020999,2]
[319493249,1710801038366,-527.57,0.00020999,2]
[319493251,1710801038375,-500.0,0.00020999,2]
[319493255,1710801038385,-500.0,0.00020999,2]
[319493258,1710801038394,-500.0,0.00020999,2]
[319493261,1710801038403,-500.0,0.00020999,2]
[319493264,1710801038411,-500.0,0.00020999,2]
[319493267,1710801038421,-500.0,0.00020999,2]
[319493270,1710801038430,-500.0,0.00020999,2]
[319493273,1710801038439,-500.0,0.00020999,2]
[319493276,1710801038448,-500.0,0.00020999,2]
[319493279,1710801038458,-500.0,0.00020999,2]
[319493282,1710801038467,-500.0,0.00020999,2]
[319493285,1710801038476,-500.0,0.00020999,2]
[319493288,1710801038485,-500.0,0.00020999,2]
[319493291,1710801038494,-500.0,0.00020999,2]
[319493294,1710801038503,-500.0,0.00020999,2]
[319493297,1710801038512,-500.0,0.00020999,2]
[319493300,1710801038521,-500.0,0.00020999,2]
[319493303,1710801038531,-500.0,0.00020999,2]
[319493306,1710801038541,-500.0,0.00020999,2]
[319493309,1710801038549,-586.54489718,0.00020999,2]
[319493312,1710801038560,-777.48206591,0.00021,5]
[319493498,1710801040183,-3513.6475169,0.00021,5]
[319493504,1710801040241,-6600.0,0.00021,5]
[319493506,1710801040252,-18175.49924973,0.00021,5]
[319493737,1710801043438,-173.12129289,0.00020897,2]
[319493738,1710801043450,-113230.13180247,0.00021,5]
[319494031,1710801046211,-191.41015561,0.00020999,2]
[319494033,1710801046221,-197808.58984439,0.00021,5]
[319495325,1710801402920,-682519.87061853,0.00021365,60]
[319495326,1710801402945,-709140.94472986,0.00021365,60]
[319495327,1710801402971,-473815.19537204,0.00021365,60]
[319495328,1710801402995,-301276.74130212,0.00021365,60]
[319495329,1710801403018,-1587349.87568866,0.00021365,60]
[319495330,1710801403044,-182274.51289956,0.00021365,60]
[319495331,1710801403070,-63622.85938923,0.00021365,60]
[319497771,1710802232352,-794.47838734,0.00019106,2]
[319497773,1710802232362,-1883.83497798,0.000193,2]
[319497775,1710802232373,-718.7077669,0.00019906,2]
[319497777,1710802232383,-155.0,0.00020548,2]
[319497779,1710802232393,-173.12129288,0.00020897,2]
[319497781,1710802232407,-500.0,0.00020899,2]
[319497800,1710802232524,-353.75459306,0.00020899,2]
[319497802,1710802232537,-353.75459304,0.00020899,2]
[319497804,1710802232547,-353.75459304,0.000209,2]
[319497806,1710802232558,-353.75459304,0.000209,2]
[319497808,1710802232568,-319.96060598,0.000209,2]
[319497810,1710802232579,-1000.0,0.000209,2]
[319497812,1710802232589,-353.75459304,0.000209,2]
[319497814,1710802232600,-500.0,0.00020997,2]
[319497816,1710802232610,-236.78007122,0.00020997,2]
[319497818,1710802232620,-500.0,0.00020997,2]
[319497820,1710802232631,-500.0,0.00020997,2]
[319497823,1710802232641,-500.0,0.00020997,2]
[319497824,1710802232651,-500.0,0.00020997,2]
[319497827,1710802232666,-500.0,0.00020997,2]
[319497828,1710802232677,-540.66,0.00020997,2]
[319497830,1710802232687,-500.0,0.00020997,2]
[319497833,1710802232697,-500.0,0.00020997,2]
[319497835,1710802232708,-410.07221551,0.00020997,2]
[319497836,1710802232719,-503.0440915,0.00020997,2]
[319497839,1710802232729,-429.60190113,0.00020997,2]
[319497840,1710802232740,-202.89699618,0.00020998,2]
[319497842,1710802232750,-500.0,0.00020998,2]
[319497845,1710802232761,-270.99452171,0.00020998,2]
[319497846,1710802232771,-179.18753222,0.00020999,2]
[319497848,1710802232781,-500.0,0.00020999,2]
[319497851,1710802232791,-304.94616307,0.00020999,2]
[319497855,1710802232831,-196.36036154,0.00020999,2]
[319497857,1710802232841,-543.05494159,0.00020999,2]
[319498400,1710802238371,-1255.64919068,0.00019105,2]
[319498815,1710802243595,-1488.99041897,0.00019105,2]
[319498817,1710802243604,-500.0,0.00020999,2]
[319498819,1710802243615,-500.0,0.00020999,2]
[319498821,1710802243624,-500.0,0.00020999,2]
[319498823,1710802243633,-500.0,0.00020999,2]
[319498825,1710802243642,-500.0,0.00020999,2]
[319498827,1710802243652,-431.63486603,0.00020999,2]
[319498829,1710802243664,-68.36513397,0.00020999,2]
[319498831,1710802243673,-500.0,0.00020999,2]
[319498833,1710802243682,-302.47909945,0.00020999,2]
[319498834,1710802243691,-501.57910099,0.00020999,2]
[319498836,1710802243700,-500.0,0.00020999,2]
[319498837,1710802243709,-531.63329424,0.00020999,2]
[319498838,1710802243718,-500.0,0.00020999,2]
[319498839,1710802243727,-500.0,0.00020999,2]
[319498840,1710802243736,-500.0,0.00020999,2]
[319498841,1710802243745,-500.0,0.00020999,2]
[319498842,1710802243754,-463.66,0.00020999,2]
[319498843,1710802243763,-361.15332449,0.00020999,2]
[319498844,1710802243772,-500.0,0.00020999,2]
[319498845,1710802243781,-500.0,0.00020999,2]
[319498846,1710802243790,-500.0,0.00020999,2]
[319498847,1710802243799,-244.70491629,0.00020999,2]
[319498848,1710802243809,-500.0,0.00020999,2]
[319498849,1710802243817,-500.0,0.00020999,2]
[319498850,1710802243826,-500.0,0.00020999,2]
[319498851,1710802243835,-500.0,0.00020999,2]
[319498852,1710802243844,-500.0,0.00020999,2]
[319498853,1710802243853,-500.0,0.00020999,2]
[319498854,1710802243862,-500.0,0.00020999,2]
[319498855,1710802243871,-500.0,0.00020999,2]
[319498856,1710802243880,-500.0,0.00020999,2]
[319498857,1710802243889,-372.17,0.00020999,2]
[319498858,1710802243898,-550.92450785,0.00020999,2]
[319498859,1710802243907,-500.0,0.00020999,2]
[319498860,1710802243918,-190.68786227,0.00020999,2]
[319498861,1710802243926,-272.32427809,0.00020999,2]
[319498862,1710802243936,-500.0,0.00020999,2]
[319498863,1710802243945,-500.0,0.00020999,2]
[319498864,1710802243954,-500.0,0.00020999,2]
[319498866,1710802243963,-500.0,0.00020999,2]
[319498868,1710802243972,-500.0,0.00020999,2]
[319498869,1710802243982,-500.0,0.00020999,2]
[319498871,1710802243991,-500.0,0.00020999,2]
[319498874,1710802244000,-500.0,0.00020999,2]
[319498875,1710802244009,-500.0,0.00020999,2]
[319498877,1710802244019,-500.0,0.00020999,2]
[319498879,1710802244028,-500.0,0.00020999,2]
[319498882,1710802244037,-500.0,0.00020999,2]
[319498883,1710802244046,-500.0,0.00020999,2]
[319498885,1710802244056,-500.0,0.00020999,2]
[319498887,1710802244065,-500.0,0.00020999,2]
[319498889,1710802244075,-500.0,0.00020999,2]
[319498891,1710802244084,-500.0,0.00020999,2]
[319498893,1710802244093,-500.0,0.00020999,2]
[319498895,1710802244103,-500.0,0.00020999,2]
[319498897,1710802244113,-463.86,0.00020999,2]
[319498899,1710802244123,-500.0,0.00020999,2]
[319498902,1710802244133,-500.0,0.00020999,2]
[319498903,1710802244142,-500.0,0.00020999,2]
[319498906,1710802244151,-500.0,0.00020999,2]
[319498908,1710802244161,-500.0,0.00020999,2]
[319498909,1710802244176,-500.0,0.00020999,2]
[319498911,1710802244186,-500.0,0.00020999,2]
[319498913,1710802244195,-500.0,0.00020999,2]
[319498915,1710802244205,-573.75316922,0.00020999,2]
[319498917,1710802244214,-501.08597932,0.00020999,2]
[319498920,1710802244224,-500.0,0.00020999,2]
[319498921,1710802244233,-500.0,0.00020999,2]
[319498923,1710802244242,-500.0,0.00020999,2]
[319498925,1710802244251,-500.0,0.00020999,2]
[319498927,1710802244260,-500.0,0.00020999,2]
[319498929,1710802244269,-533.83790093,0.00020999,2]
[319498931,1710802244278,-500.0,0.00020999,2]
[319498933,1710802244289,-500.0,0.00020999,2]
[319498936,1710802244300,-500.0,0.00020999,2]
[319498937,1710802244309,-502.26125973,0.00020999,2]
[319498939,1710802244318,-500.0,0.00020999,2]
[319498941,1710802244327,-500.0,0.00020999,2]
[319498943,1710802244336,-500.0,0.00020999,2]
[319498945,1710802244345,-500.0,0.00020999,2]
[319498947,1710802244354,-215.85081312,0.00020999,2]
[319498949,1710802244363,-688.81,0.00020999,2]
[319498951,1710802244373,-688.81,0.00020999,2]
[319498953,1710802244382,-688.81,0.00020999,2]
[319498955,1710802244391,-688.81,0.00020999,2]
[319498957,1710802244400,-688.81,0.00020999,2]
[319498959,1710802244409,-688.81,0.00020999,2]
[319498961,1710802244420,-688.81,0.00020999,2]
[319498963,1710802244429,-688.81,0.00020999,2]
[319498965,1710802244438,-688.81,0.00020999,2]
[319498967,1710802244447,-688.81,0.00020999,2]
[319498969,1710802244456,-688.81,0.00020999,2]
[319498971,1710802244466,-688.81,0.00020999,2]
[319498973,1710802244476,-688.81,0.00020999,2]
[319498975,1710802244485,-688.81,0.00020999,2]
[319498977,1710802244494,-688.81,0.00020999,2]
[319498979,1710802244502,-688.81,0.00020999,2]
[319498981,1710802244511,-688.81,0.00020999,2]
[319498983,1710802244520,-688.81,0.00020999,2]
[319498985,1710802244529,-688.81,0.00020999,2]
[319498987,1710802244537,-688.81,0.00020999,2]
[319498989,1710802244546,-688.81,0.00020999,2]
[319498991,1710802244555,-688.81,0.00020999,2]
[319498993,1710802244564,-688.81,0.00020999,2]
[319498995,1710802244573,-689.01163572,0.00020999,2]
[319498997,1710802244582,-76039.21186903,0.00021,5]
[319498999,1710802244595,-12465.86403957,0.00021,5]
[319500925,1710803432569,-1883.83497798,0.00019915,2]
[319500926,1710803432579,-2744.63960965,0.00019945,2]
[319500927,1710803432588,-325.90157616,0.00019947,5]
[319500928,1710803432598,-336.97833267,0.00019948,2]
[319500930,1710803432607,-155.0,0.00020548,2]
[319500932,1710803432620,-275.0,0.00020899,2]
[319500934,1710803432630,-1000.0,0.000209,2]
[319500935,1710803432639,-221.09662065,0.000209,2]
[319500937,1710803432650,-290.51103851,0.0002097,7]
[319500938,1710803432660,-2601.08142185,0.00020998,2]
[319500939,1710803432670,-289.2429693,0.00020998,2]
[319500940,1710803432679,-1092.09700345,0.00020998,2]
[319500941,1710803432689,-164.35290458,0.00020998,2]
[319500943,1710803432698,-304.49442129,0.00020998,2]
[319500945,1710803432708,-1475.78282209,0.00020998,2]
[319500946,1710803432718,-309.96436471,0.00020998,2]
[319500947,1710803432728,-158.93177271,0.00020999,2]
[319500948,1710803432739,-500.0,0.00020999,2]
[319500950,1710803432749,-500.0,0.00020999,2]
[319500952,1710803432758,-500.0,0.00020999,2]
[319500954,1710803432767,-500.0,0.00020999,2]
[319500956,1710803432777,-560.40758649,0.00020999,2]
[319500958,1710803432786,-500.0,0.00020999,2]
[319500959,1710803432795,-346.13169606,0.00020999,2]
[319500961,1710803432805,-500.0,0.00020999,2]
[319500963,1710803432814,-500.0,0.00020999,2]
[319500965,1710803432824,-50277.0206191,0.00021,5]
[319500968,1710803432838,-1575.45296017,0.00021,5]
[319501089,1710803438635,-1620.33969658,0.00021,5]
[319501566,1710803443644,-285.22676191,0.00020999,2]
[319501568,1710803443655,-1598.60821607,0.00020999,2]
[319501570,1710803443664,-224.46226694,0.00020999,2]
[319501572,1710803443677,-275.53773306,0.00020999,2]
[319501574,1710803443686,-500.0,0.00020999,2]
[319501576,1710803443695,-1028.78568994,0.00020999,2]
[319501579,1710803443706,-4566.7516398,0.00020999,2]
[319501581,1710803443717,-9676.48587813,0.00020999,2]
[319501583,1710803443726,-110211.52393223,0.00021,5]
[319502144,1710804631752,-210.84686364,0.00020479,2]
[319502146,1710804631762,-493.29852979,0.0002048,2]
[319502148,1710804631772,-179.23795265,0.00020481,2]
[319502150,1710804631781,-1883.83497798,0.00020481,2]
[319502152,1710804631791,-625.84728126,0.0002051,2]
[319502154,1710804631801,-155.01550155,0.00020543,2]
[319502156,1710804631810,-155.0,0.00020548,2]
[319502158,1710804631820,-221.09662065,0.00020898,2]
[319502160,1710804631829,-1000.0,0.00020899,2]
[319502162,1710804631839,-6877.02638457,0.000209,2]
[319502754,1710804639878,-173.12129289,0.00020897,2]
[319502756,1710804639887,-6865.75861823,0.000209,2]
[319502757,1710804639897,-155.71287061,0.00020997,2]
[319502759,1710804639906,-2549.19700098,0.00020997,2]
[319502985,1710804642870,-7127.28887715,0.00020997,2]
[319502986,1710804642880,-500.0,0.00020997,2]
[319502987,1710804642889,-500.0,0.00020997,2]
[319502988,1710804642898,-448.16475519,0.00020997,2]
[319502989,1710804642907,-509.08617048,0.00020997,2]
[319502990,1710804642917,-507.34,0.00020997,2]
[319502991,1710804642928,-507.34,0.00020997,2]
[319502992,1710804642937,-196.36036154,0.00020997,2]
[319502993,1710804642947,-500.0,0.00020997,2]
[319502994,1710804642956,-500.0,0.00020997,2]
[319502995,1710804642966,-500.0,0.00020997,2]
[319502996,1710804642975,-500.0,0.00020997,2]
[319502997,1710804642985,-500.0,0.00020997,2]
[319502998,1710804642997,-454.41983565,0.00020997,2]
[319502999,1710804643010,-45.58016435,0.00020997,2]
[319503000,1710804643019,-500.0,0.00020997,2]
[319503001,1710804643028,-500.0,0.00020997,2]
[319503002,1710804643037,-500.0,0.00020997,2]
[319503003,1710804643047,-500.0,0.00020997,2]
[319503005,1710804643055,-500.0,0.00020997,2]
[319503007,1710804643066,-500.0,0.00020997,2]
[319503009,1710804643075,-500.0,0.00020997,2]
[319503011,1710804643084,-500.0,0.00020997,2]
[319503013,1710804643093,-501.16146542,0.00020997,2]
[319503015,1710804643102,-500.0,0.00020997,2]
[319503017,1710804643113,-1996.66523358,0.00020998,2]
[319503019,1710804643122,-639.33425979,0.00020998,2]
[319503021,1710804643131,-262.77802159,0.00020998,7]
[319503023,1710804643140,-10470.0,0.00020998,2]
[319503025,1710804643149,-414.02815094,0.00020998,2]
[319503027,1710804643158,-385.15908018,0.00020998,2]
[319503029,1710804643167,-1106.00926196,0.00020998,2]
[319503031,1710804643176,-248.55140072,0.00020998,2]
[319503033,1710804643185,-250.93133992,0.00020998,2]
[319503035,1710804643194,-300.39097585,0.00020998,2]
[319503036,1710804643203,-197.4103245,0.00020998,2]
[319503038,1710804643212,-155.13186208,0.00020998,2]
[319503040,1710804643221,-497.55195,0.00020998,2]
[319503042,1710804643230,-533.86112351,0.00020998,2]
[319503044,1710804643239,-3144.75019936,0.00020998,2]
[319503046,1710804643248,-245.98065434,0.00020998,2]
[319503048,1710804643257,-306.72520796,0.00020998,2]
[319503050,1710804643266,-524.29941204,0.00020998,2]
[319503052,1710804643275,-205.10981299,0.00020998,2]
[319503054,1710804643284,-627.45152945,0.00020998,2]
[319503055,1710804643293,-155.08219356,0.00020998,2]
[319503056,1710804643303,-171.54331571,0.00020998,2]
[319503057,1710804643311,-169.34132195,0.00020998,2]
[319503058,1710804643320,-599.75180444,0.00020998,2]
[319503059,1710804643329,-179.15835555,0.00020998,2]
[319503060,1710804643338,-177.89838851,0.00020998,2]
[319503061,1710804643348,-208.43582716,0.00020998,2]
[319503063,1710804643358,-237.81900663,0.00020998,2]
[319503064,1710804643367,-155.57735278,0.00020998,2]
[319503065,1710804643377,-155.87990677,0.00020998,2]
[319503067,1710804643386,-350.67370948,0.00020998,2]
[319503069,1710804643394,-1605.73159724,0.00020998,2]
[319503071,1710804643403,-155.5463427,0.00020998,2]
[319503072,1710804643412,-311.42954669,0.00020998,2]
[319503073,1710804643422,-155.47720194,0.00020998,2]
[319503074,1710804643431,-199.59737851,0.00020998,2]
[319503075,1710804643440,-501.90666179,0.00020998,2]
[319503076,1710804643449,-500.0,0.00020998,2]
[319503077,1710804643459,-500.0,0.00020998,2]
[319503078,1710804643468,-500.0,0.00020998,2]
[319503079,1710804643477,-500.0,0.00020998,2]
[319503080,1710804643487,-500.0,0.00020998,2]
[319503081,1710804643496,-502.50733847,0.00020998,2]
[319503082,1710804643506,-500.0,0.00020998,2]
[319503083,1710804643515,-500.0,0.00020998,2]
[319503084,1710804643525,-504.0926397,0.00020998,2]
[319503085,1710804643534,-500.0,0.00020998,2]
[319503086,1710804643542,-96.93704009,0.00020998,2]
[319503087,1710804643555,-403.06295991,0.00020998,2]
[319503088,1710804643564,-500.0,0.00020998,2]
[319503089,1710804643573,-33547.74,0.00020998,2]
[319503090,1710804643581,-31814.56273627,0.00020998,2]
[319503091,1710804643603,-1733.17726373,0.00020998,2]
[319503092,1710804643614,-33547.74,0.00020998,2]
[319503093,1710804643623,-33547.74,0.00020998,2]
[319503094,1710804643632,-33547.74,0.00020998,2]
[319503095,1710804643641,-33547.74,0.00020998,2]
[319503096,1710804643650,-33547.74,0.00020998,2]
[319503097,1710804643659,-33547.74,0.00020998,2]
[319503098,1710804643668,-33547.74,0.00020998,2]
[319503099,1710804643677,-33547.74,0.00020998,2]
[319503100,1710804643686,-33547.74,0.00020998,2]
[319503101,1710804643696,-33547.74,0.00020998,2]
[319503102,1710804643705,-33547.74,0.00020998,2]
[319503103,1710804643714,-500.0,0.00020998,2]
[319503104,1710804643723,-500.0,0.00020998,2]
[319503105,1710804643733,-500.0,0.00020998,2]
[319503106,1710804643741,-500.0,0.00020998,2]
[319503107,1710804643750,-500.0,0.00020998,2]
[319503108,1710804643760,-500.0,0.00020998,2]
[319503109,1710804643769,-500.0,0.00020998,2]
[319503110,1710804643778,-500.0,0.00020998,2]
[319503111,1710804643787,-500.0,0.00020998,2]
[319503112,1710804643796,-500.0,0.00020998,2]
[319503113,1710804643808,-500.0,0.00020998,2]
[319503114,1710804643817,-500.0,0.00020998,2]